bitfinex/quotes_ETHUSD_20250326
["timestamp","ask_amount","ask_price","bid_price","bid_amount"]
[1742996905686,3.0,2054.9,2054.5,4.9874999]
[1742996906214,3.0,2054.9,2054.6,4.8671]
[1742996906719,4.786,2055.0,2054.7,4.86688]
[1742996906870,7.786,2055.0,2054.6,10.52902]
[1742996907071,7.786,2055.0,2054.6,6.72684599]
[1742996907302,7.786,2055.0,2054.6,5.66192]
[1742996908133,7.786,2055.0,2054.5,0.1202399]
[1742996911371,0.55,2054.9,2054.5,0.1202399]
[1742996911604,4.43928581,2054.7,2054.5,0.1202399]
[1742996911803,3.0,2054.6,2054.5,0.1202399]
[1742996912167,4.37552858,2054.6,2054.5,0.1202399]
[1742996912804,5.20472858,2054.6,2054.5,0.1202399]
[1742996913801,5.56265535,2054.6,2054.5,0.1202399]
[1742996916607,3.8292,2054.6,2054.5,0.1202399]
[1742996916821,0.8292,2054.6,2054.5,0.1202399]
[1742996917212,1.7996703,2054.6,2054.5,0.1202399]
[1742996917515,0.55,2054.7,2054.5,0.1202399]
[1742996917683,3.55,2054.7,2054.5,0.1202399]
[1742996918013,4.771,2054.6,2054.5,0.1202399]
[1742996918697,4.769,2054.7,2054.5,0.1202399]
[1742996918881,4.769,2054.7,2054.5,0.61901289]
[1742996919081,4.769,2054.7,2054.5,5.48628289]
[1742996919481,4.769,2054.7,2054.5,5.48622289]
[1742996919716,4.769,2054.7,2054.6,4.86712]
[1742996919874,4.769,2054.7,2054.6,5.67922]
[1742996920079,4.769,2054.7,2054.6,1.92864429]
[1742996920326,4.769,2054.7,2054.6,1.11654429]
[1742996920478,4.769,2054.7,2054.5,0.1202399]
[1742996921019,4.768,2055.0,2054.8,4.86652]
[1742996921236,4.768,2054.9,2054.8,5.353172]
[1742996921531,4.768,2054.9,2054.8,6.152472]
[1742996921822,4.768,2054.9,2054.8,1.285952]
[1742996922137,4.98928581,2055.4,2055.0,4.86606]
[1742996922138,3.0,2055.4,2055.0,4.86606]
[1742996922293,7.767,2055.4,2055.0,4.86596]
[1742996922709,7.767,2055.4,2055.0,9.73203]
[1742996922915,7.767,2055.4,2055.0,5.9677582]
[1742996923117,7.767,2055.4,2055.1,4.86593]
[1742996923325,28.085,2055.5,2055.2,5.69694]
[1742996923540,32.851,2055.5,2055.2,0.8313]
[1742996923701,33.82728315,2055.5,2055.0,11.6379682]
[1742996923906,32.851,2055.5,2055.1,4.86587]
[1742996924222,3.0,2055.4,2055.1,4.86587]
[1742996924592,3.0,2055.4,2055.0,6.7718982]
[1742996924792,3.0,2055.4,2055.0,0.804]
[1742996924992,3.0,2055.4,2054.9,4.86619]
[1742996925192,3.0,2055.4,2055.0,4.86616]
[1742996925403,3.0,2055.4,2054.9,4.86619]
[1742996925404,3.0,2055.4,2054.9,4.86639]
[1742996925603,0.8229,2055.3,2054.8,5.67817]
[1742996925819,0.8229,2055.3,2054.9,4.86633]
[1742996926063,0.8229,2055.3,2055.0,4.86616]
[1742996926353,3.8229,2055.8,2055.3,4.86546]
[1742996926645,5.5939,2055.8,2055.4,4.8652]
[1742996926855,7.43928581,2055.7,2055.2,5.68078]
[1742996927005,3.0,2055.4,2055.0,0.7988]
[1742996927205,3.0,2055.2,2054.8,9.73309]
[1742996927406,3.0,2055.2,2054.9,4.86639]
[1742996927705,3.0,2055.2,2054.7,0.7988]
[1742996927939,0.55,2055.1,2054.6,4.86711]
[1742996928134,0.55,2055.1,2054.6,9.73407]
[1742996928337,0.55,2055.1,2054.6,4.86696]
[1742996928540,0.55,2055.1,2054.7,0.04866386]
[1742996928909,0.55,2055.1,2054.7,9.78230386]
[1742996929239,0.55,2055.1,2054.7,4.86677]
[1742996929654,1.90740858,2055.1,2054.6,4.86708]
[1742996930642,0.55,2055.1,2054.7,4.86686]
[1742996930940,0.55,2055.1,2054.7,4.91552387]
[1742996932438,0.55,2055.1,2054.7,4.86686]
[1742996933002,0.55,2055.1,2054.5,5.7863099]
[1742996933003,4.98928581,2055.1,2054.5,5.7863099]
[1742996933225,0.8203,2055.0,2054.6,4.86704]
[1742996933583,0.55,2055.1,2054.7,4.8668]
[1742996934960,4.56086238,2055.1,2054.7,4.8668]
[1742996935460,4.01086238,2055.1,2054.6,4.86712]
[1742996935647,4.761,2055.2,2054.7,0.57861599]
[1742996935956,4.761,2055.2,2055.0,4.86612]
[1742996936161,4.761,2055.2,2054.8,4.86657]
[1742996936357,4.761,2055.2,2054.7,4.86682]
[1742996936358,4.01086238,2055.0,2054.7,4.86682]
[1742996936655,4.01086238,2055.0,2054.6,4.86695]
[1742996936859,4.01086238,2055.0,2054.6,10.79801399]
[1742996937023,4.01086238,2055.0,2054.6,5.93106399]
[1742996937235,4.01086238,2055.0,2054.7,4.86684]
[1742996937452,4.01086238,2055.0,2054.7,4.86678]
[1742996937656,4.01086238,2055.0,2054.6,4.86712]
[1742996938162,4.01086238,2055.0,2054.5,5.7741199]
[1742996938328,4.01086238,2055.0,2054.5,0.1202399]
[1742996938523,4.01086238,2054.8,2054.5,0.1202399]
[1742996938785,4.01086238,2054.8,2054.5,4.9875899]
[1742996939133,4.01086238,2054.6,2054.5,0.1202399]
[1742996939327,7.01086238,2054.6,2054.5,0.1202399]
[1742996939833,3.0,2054.6,2054.5,0.1202399]
[1742996940042,7.764,2054.7,2054.5,4.9875999]
[1742996940333,7.764,2054.7,2054.5,0.1202399]
[1742996941048,7.01086238,2054.6,2054.5,0.1202399]
[1742996941256,7.56086238,2054.6,2054.5,0.1202399]
[1742996946568,8.32076238,2054.6,2054.5,0.1202399]
[1742996947641,0.7599,2054.6,2054.5,0.1202399]
[1742996947975,4.761,2055.0,2054.7,4.86689]
[1742996948173,4.761,2055.0,2054.7,0.58131299]
[1742996948362,3.0,2054.9,2054.7,0.58131299]
[1742996948558,5.754767,2055.0,2054.7,0.58131299]
[1742996948767,4.01086238,2054.9,2054.7,0.58131299]
[1742996949070,7.01086238,2054.9,2054.7,0.58131299]
[1742996950170,3.0,2054.8,2054.5,4.9874499]
[1742996950379,3.8276,2054.8,2054.5,0.1202399]
[1742996950671,3.0,2054.6,2054.5,0.1202399]
[1742996950970,3.55,2054.6,2054.5,0.1202399]
[1742996951162,5.08838624,2054.6,2054.5,0.1202399]
[1742996957971,9.29658051,2054.6,2054.5,0.1202399]
[1742996958174,4.76,2054.6,2054.5,0.1202399]
[1742996959379,11.77086238,2054.6,2054.5,0.1202399]
[1742996959702,28.8725,2055.0,2054.6,0.7861]
[1742996959855,4.761,2054.8,2054.6,0.7861]
[1742996960050,7.761,2054.8,2054.7,0.57736699]
[1742996960274,7.761,2054.8,2054.6,0.7861]
[1742996960275,3.0,2054.7,2054.6,0.7861]
[1742996961063,3.0,2054.7,2054.5,0.1202399]
[1742996961452,7.01086238,2054.7,2054.5,0.1202399]
[1742996961763,0.55,2054.6,2054.5,0.1202399]
[1742996963056,1.3645,2054.6,2054.5,0.1202399]
[1742996963251,2.67813624,2054.6,2054.5,0.1202399]
[1742996963691,5.67813624,2054.6,2054.5,0.1202399]
[1742996966181,9.68899862,2054.6,2054.5,0.1202399]
[1742996968564,5.67813624,2054.6,2054.5,0.1202399]
[1742996968881,9.68899862,2054.6,2054.5,0.1202399]
[1742996969264,5.67813624,2054.6,2054.5,0.1202399]
[1742996969786,10.43313624,2054.6,2054.5,0.1202399]
[1742996970682,14.44399862,2054.6,2054.5,0.1202399]
[1742996970891,10.43313624,2054.6,2054.5,0.1202399]
[1742996974622,5.67813624,2054.6,2054.5,0.1202399]
[1742996974823,4.3645,2054.6,2054.5,0.1202399]
[1742996974980,4.754,2054.6,2054.5,0.1202399]
[1742996975174,0.95404411,2054.7,2054.5,5.03627408]
[1742996975404,36.85686238,2055.0,2054.6,5.69924]
[1742996975711,3.0,2054.9,2054.6,5.69924]
[1742996975903,7.01086238,2054.8,2054.7,1.06868399]
[1742996976606,4.01086238,2054.8,2054.7,1.06868399]
[1742996976973,37.81281416,2055.0,2054.7,4.86689]
[1742996977173,37.81281416,2055.0,2054.8,5.69958]
[1742996977174,28.089,2055.0,2054.8,5.69958]
[1742996977412,32.844,2055.0,2054.8,5.69958]
[1742996977609,4.755,2055.0,2054.8,0.8331]
[1742996978012,4.01086238,2054.9,2054.8,0.8331]
[1742996978510,3.0,2054.8,2054.6,0.8129]
[1742996978708,4.01086238,2054.7,2054.6,0.8129]
[1742996978909,7.01086238,2054.7,2054.6,0.8129]
[1742996979113,7.01086238,2054.7,2054.5,0.1202399]
[1742996979416,0.55,2054.6,2054.5,0.1202399]
[1742996979612,7.01086238,2054.7,2054.5,0.1202399]
[1742996980019,3.0,2054.7,2054.5,0.1202399]
[1742996980221,3.0,2054.7,2054.5,0.70032689]
[1742996980418,7.763,2054.7,2054.5,5.56755689]
[1742996980806,8.77486238,2054.8,2054.6,4.86703]
[1742996981009,11.77486238,2054.8,2054.7,0.8129]
[1742996983410,3.0,2054.7,2054.5,0.70032689]
[1742996983617,4.56086238,2054.6,2054.5,0.1202399]
[1742996984990,5.54076591,2054.6,2054.5,0.1202399]
[1742996988225,1.52990353,2054.6,2054.5,0.1202399]
[1742996988523,8.299,2054.6,2054.5,0.1202399]
[1742996989332,4.755,2054.7,2054.5,0.9467399]
[1742996989517,4.755,2054.7,2054.5,1.52816489]
[1742996989921,3.0,2054.6,2054.5,1.52816489]
[1742996990122,3.0,2054.6,2054.5,6.39552489]
[1742996990437,3.0,2054.6,2054.5,1.52816489]
[1742996990606,3.55,2054.6,2054.5,0.1202399]
[1742996991030,4.3178,2054.6,2054.5,0.1202399]
[1742996991432,8.32866238,2054.6,2054.5,0.1202399]
[1742996991612,4.3178,2054.6,2054.5,0.1202399]
[1742996991930,5.92616624,2054.6,2054.5,0.1202399]
[1742996993134,10.37296825,2054.6,2054.5,0.1202399]
[1742996996314,9.60516825,2054.6,2054.5,0.1202399]
[1742996996519,12.75080201,2054.6,2054.5,0.1202399]
[1742996996717,7.754,2054.6,2054.5,0.1202399]
[1742996996923,8.304,2054.6,2054.5,0.1202399]
[1742996997324,7.754,2054.6,2054.5,0.1202399]
[1742996997524,8.304,2054.6,2054.5,0.1202399]
[1742996997731,5.304,2054.6,2054.5,0.1202399]
[1742996998423,5.304,2054.6,2054.5,0.8856399]
[1742996998747,4.754,2054.6,2054.5,0.8856399]
[1742996999951,4.75,2054.6,2054.5,1.94774189]
[1742997000147,32.844,2055.0,2054.9,0.782]
[1742997000447,32.844,2055.0,2054.6,0.8155]
[1742997000765,3.55,2054.6,2054.5,0.1202399]
[1742997001248,4.3493,2054.6,2054.5,0.1202399]
[1742997001463,8.2289102,2054.6,2054.5,0.1202399]
[1742997005779,9.22024346,2054.6,2054.5,0.1202399]
[1742997006751,0.99133326,2054.6,2054.5,0.1202399]
[1742997007042,4.753,2054.6,2054.5,0.1202399]
[1742997007248,10.53960201,2054.6,2054.5,0.1202399]
[1742997007444,13.53960201,2054.6,2054.5,0.1202399]
[1742997007752,16.53960201,2054.6,2054.5,0.1202399]
[1742997007947,18.29004236,2054.6,2054.5,0.1202399]
[1742997008760,18.29004236,2054.6,2054.1,0.07]
[1742997008761,4.3498,2054.2,2054.1,0.07]
[1742997008949,8.79660201,2054.2,2054.1,0.07]
[1742997010555,8.81670201,2054.2,2054.1,0.07]
[1742997010902,8.81670201,2054.2,2053.6,0.004]
[1742997010903,1.3699,2053.7,2053.6,0.004]
[1742997011105,13.58570201,2053.7,2053.6,0.004]
[1742997012224,0.55,2053.3,2052.1,4.94305]
[1742997012396,15.77180201,2053.2,2052.5,0.9359399]
[1742997012564,18.29224221,2053.2,2052.5,0.1202399]
[1742997012905,3.0,2052.8,2052.5,0.1202399]
[1742997013107,7.57335993,2052.6,2052.5,0.1202399]
[1742997013271,7.57335993,2052.6,2052.1,0.07]
[1742997013272,6.55,2052.5,2052.1,0.07]
[1742997013469,7.57335993,2052.2,2052.1,0.07]
[1742997013781,7.57335993,2052.2,2052.0,0.005]
[1742997013782,3.55,2052.1,2052.0,0.005]
[1742997013984,3.55,2052.1,2051.2,4.87508]
[1742997013985,3.0,2051.7,2051.2,4.87508]
[1742997014301,3.0,2051.7,2051.4,4.87448]
[1742997014486,3.0,2051.7,2051.3,0.7932]
[1742997014687,4.866,2052.3,2052.1,4.87282]
[1742997014886,4.866,2052.3,2052.2,4.87281]
[1742997015062,4.866,2052.3,2052.1,4.87282]
[1742997015399,4.866,2052.3,2051.9,4.87348]
[1742997015603,4.866,2052.3,2051.6,4.87414]
[1742997015604,3.0,2052.2,2051.6,4.87414]
[1742997015906,7.884,2052.2,2051.6,4.8742]
[1742997016207,3.0,2052.0,2051.7,4.87391]
[1742997016371,4.89,2052.4,2052.1,4.87292]
[1742997016576,4.89,2052.4,2052.0,4.87324]
[1742997016776,7.45405026,2052.3,2051.7,4.87377]
[1742997017094,7.45405026,2052.3,2051.7,4.87388]
[1742997017299,7.45405026,2052.3,2051.8,4.87376]
[1742997017796,7.45405026,2052.3,2051.9,0.7992]
[1742997019582,10.45405026,2052.3,2051.6,0.8002]
[1742997019786,6.0,2052.0,2051.3,0.8002]
[1742997019991,9.35505026,2051.9,2051.3,0.8002]
[1742997020387,4.901,2051.9,2051.3,0.8002]
[1742997020590,10.32965694,2051.9,2051.3,0.8002]
[1742997020768,5.87560668,2051.9,2051.3,0.8002]
[1742997021088,1.18756067,2051.8,2051.3,0.8002]
[1742997021291,5.87560668,2051.9,2051.3,5.67493]
[1742997021493,6.0,2052.0,2051.4,9.74903]
[1742997021811,4.923,2051.9,2051.4,4.87449]
[1742997022008,1.788726,2052.2,2051.4,0.55]
[1742997022198,3.0,2051.8,2051.6,5.68968]
[1742997022507,4.928,2052.4,2052.1,0.7934]
[1742997023093,4.45405026,2052.2,2051.5,14.5]
[1742997023404,3.0,2052.1,2051.4,0.7808]
[1742997023569,3.0,2051.9,2051.4,0.7808]
[1742997023765,4.942,2051.8,2051.4,0.7808]
[1742997024078,3.0,2051.7,2051.1,0.8186]
[1742997024905,3.0,2051.7,2051.1,5.69398]
[1742997025066,3.0,2051.7,2051.1,0.8186]
[1742997025962,3.0,2051.7,2051.2,4.87513]
[1742997026198,3.0,2051.7,2051.1,0.8186]
[1742997026403,3.0,2051.7,2051.1,5.69394]
[1742997026404,4.0000205,2051.7,2051.1,5.69394]
[1742997026604,3.0,2051.7,2051.2,4.87508]
[1742997026787,3.0,2051.7,2051.4,4.87468]
[1742997026992,3.0,2051.7,2051.4,4.87461]
[1742997027182,3.0,2051.7,2051.4,9.74922]
[1742997027498,4.943,2051.7,2051.5,4.87443]
[1742997027715,4.943,2051.7,2051.4,4.87468]
[1742997028065,4.943,2051.7,2051.3,4.87495]
[1742997028066,4.943,2051.7,2051.3,4.87491]
[1742997028304,4.943,2051.7,2051.4,4.87449]
[1742997028478,4.943,2051.7,2051.5,4.87425]
[1742997028802,0.8157,2052.1,2051.6,4.87401]
[1742997029100,0.8157,2052.1,2051.3,4.87493]
[1742997029101,12.39105026,2052.0,2051.3,0.8141]
[1742997029275,3.0,2051.9,2051.3,0.8141]
[1742997029976,3.0,2051.9,2050.8,9.33018026]
[1742997029977,7.45405026,2051.6,2050.9,4.87576]
[1742997030181,7.45405026,2051.6,2050.8,0.8056]
[1742997030182,3.0,2051.4,2050.8,5.68166]
[1742997030488,3.0,2051.4,2050.8,0.8056]
[1742997030885,0.7994,2051.3,2050.8,0.8056]
[1742997031267,3.0,2051.1,2050.5,0.7761]
[1742997031600,3.0,2050.9,2050.5,0.7761]
[1742997031970,3.0,2050.9,2050.5,5.65293]
[1742997032170,3.0,2050.9,2050.4,0.1202399]
[1742997032606,8.21965026,2050.8,2050.4,0.1202399]
[1742997033402,3.794,2050.5,2050.4,0.1202399]
[1742997033567,11.767,2050.5,2050.4,0.1202399]
[1742997033768,8.767,2050.5,2050.4,0.1202399]
[1742997033968,7.972,2050.5,2050.4,0.1202399]
[1742997034210,0.7762,2050.8,2050.4,0.1202399]
[1742997034412,3.0,2050.6,2050.4,0.1202399]
[1742997034582,3.0,2050.6,2050.4,4.9973199]
[1742997034908,0.19527949,2051.0,2050.6,4.87647]
[1742997035274,4.999,2050.9,2050.7,14.5]
[1742997035469,7.999,2050.9,2050.7,19.3763]
[1742997035676,0.11456814,2050.8,2050.7,19.3763]
[1742997036313,3.11456814,2050.8,2050.7,14.5]
[1742997036515,8.11156814,2050.8,2050.5,4.87664]
[1742997037011,8.11156814,2050.8,2050.6,4.87647]
[1742997037217,8.11156814,2050.8,2050.5,4.87671]
[1742997037373,0.11456814,2050.8,2050.7,4.87638]
[1742997037576,0.11456814,2050.8,2050.6,4.87657]
[1742997037770,0.11456814,2050.8,2050.5,0.7946]
[1742997038073,0.11456814,2050.8,2050.4,4.9972699]
[1742997038074,3.11456814,2050.8,2050.4,0.1202399]
[1742997038388,0.7787,2050.7,2050.4,0.1202399]
[1742997038569,0.11380346,2050.6,2050.4,0.1202399]
[1742997038880,7.45405026,2050.5,2050.4,0.1202399]
[1742997039080,8.23555026,2050.5,2050.4,0.1202399]
[1742997039308,8.34807596,2050.5,2050.4,0.1202399]
[1742997039525,9.48288356,2050.5,2050.4,0.1202399]
[1742997039691,10.03288356,2050.5,2050.4,0.1202399]
[1742997040211,10.0458333,2050.5,2050.4,0.1202399]
[1742997040724,10.5958333,2050.5,2050.4,0.1202399]
[1742997040907,13.5750373,2050.5,2050.4,0.1202399]
[1742997041108,10.5958333,2050.5,2050.4,0.1202399]
[1742997041305,3.0,2050.2,2050.1,0.07]
[1742997041509,40.25875026,2050.2,2050.1,0.07]
[1742997041748,40.3702055,2050.2,2050.1,0.07]
[1742997042161,44.8502055,2050.2,2050.1,0.07]
[1742997042516,44.8522055,2050.2,2050.1,0.07]
[1742997043022,45.43184537,2050.2,2050.1,0.07]
[1742997043757,44.89084537,2050.2,2050.1,0.07]
[1742997043942,45.44084537,2050.2,2050.1,0.07]
[1742997044527,40.39984537,2050.2,2050.1,0.07]
[1742997044727,45.45084537,2050.2,2050.1,0.07]
[1742997044944,95.95084537,2050.2,2050.1,0.07]
[1742997045146,66.65127937,2050.2,2050.1,0.07]
[1742997045348,66.65127937,2050.2,2048.7,5.67674]
[1742997045349,3.0,2049.2,2048.7,0.7956]
[1742997045666,3.0,2049.2,2048.4,0.1202399]
[1742997045667,3.0,2048.7,2048.4,0.1202399]
[1742997045967,11.27515026,2048.5,2048.4,0.1202399]
[1742997046252,11.27515026,2048.5,2048.4,5.0020899]
[1742997046253,3.0,2048.5,2048.4,5.0020899]
[1742997046451,3.0,2048.5,2048.4,0.1202399]
[1742997046452,4.45405026,2048.5,2048.4,0.1202399]
[1742997046629,7.75405026,2048.5,2048.4,0.1202399]
[1742997047227,8.204,2048.5,2048.4,0.1202399]
[1742997047748,3.0,2048.5,2048.4,5.0020899]
[1742997047953,3.0,2048.5,2048.4,0.1202399]
[1742997049169,5.35735751,2049.1,2048.5,0.7835]
[1742997049468,5.225,2049.7,2048.9,4.88051]
[1742997049626,5.225,2049.7,2048.7,4.88114]
[1742997049627,5.23,2049.6,2048.7,4.88114]
[1742997049827,5.23,2049.6,2049.0,4.8803]
[1742997050032,3.0,2049.7,2049.0,4.8803]
[1742997050243,5.23,2049.6,2048.9,4.88051]
[1742997050441,0.823,2049.5,2048.8,4.88088]
[1742997050847,5.227,2049.4,2048.8,4.88078]
[1742997051143,3.0,2049.3,2048.8,4.88078]
[1742997051343,0.7721,2049.2,2048.8,4.88078]
[1742997051636,3.0,2049.3,2048.7,4.8811]
[1742997051966,3.0,2049.3,2048.4,0.6702399]
[1742997052141,0.8227,2049.2,2048.7,4.88101]
[1742997052327,0.8227,2049.2,2048.6,4.88138]
[1742997052530,0.8227,2049.2,2048.6,4.88126]
[1742997053029,0.10376485,2049.1,2048.6,9.76244]
[1742997053248,0.10376485,2049.1,2048.6,4.88118]
[1742997053464,0.49641134,2049.1,2048.5,0.63564799]
[1742997053760,3.0,2048.5,2048.4,0.1202399]
[1742997053959,8.247,2048.5,2048.4,0.1202399]
[1742997054127,3.0,2048.9,2048.4,0.1202399]
[1742997054327,4.85e-06,2048.5,2048.4,6.3403899]
[1742997054527,0.8147,2049.6,2048.4,3.03204238]
[1742997054743,4.75911186,2049.9,2049.4,4.87947]
[1742997055066,5.272,2049.8,2049.7,4.87872]
[1742997055266,5.28,2050.1,2049.7,4.87876]
[1742997055560,5.28,2050.1,2049.6,0.8032]
[1742997055561,3.0,2050.0,2049.6,0.8032]
[1742997055749,5.28,2050.1,2049.7,4.87863]
[1742997055949,0.558,2050.0,2049.2,5.66065]
[1742997056154,3.558,2050.0,2049.3,4.87964]
[1742997056353,3.558,2050.0,2049.2,5.6608]
[1742997056529,3.558,2050.0,2049.2,0.7809]
[1742997056530,3.0,2049.8,2049.2,0.7809]
[1742997057166,3.558,2050.0,2049.4,4.8794]
[1742997057461,0.8838,2049.9,2049.4,4.87947]
[1742997057664,0.558,2050.0,2049.5,4.87921]
[1742997057837,0.558,2050.0,2049.2,0.7809]
[1742997058031,0.558,2050.0,2049.3,4.87971]
[1742997058228,3.0,2049.8,2049.3,4.87951]
[1742997058537,3.0,2049.8,2049.3,4.87969]
[1742997058738,0.91456952,2049.7,2049.1,4.88009]
[1742997058933,0.91456952,2049.7,2049.1,9.76012]
[1742997059135,0.09136952,2049.7,2049.4,4.8793]
[1742997059332,0.09136952,2049.7,2049.5,4.8792]
[1742997059639,0.09136952,2049.7,2049.6,4.879]
[1742997059876,0.09136952,2049.7,2049.6,5.44911]
[1742997060249,0.09136952,2049.7,2049.6,5.49789217]
[1742997060449,0.09136952,2049.7,2049.6,5.44911]
[1742997060751,0.09136952,2049.7,2049.5,4.87912]
[1742997061105,3.0,2049.6,2048.9,4.88045]
[1742997061262,3.0,2049.6,2049.0,9.76056]
[1742997061433,3.0,2049.6,2049.1,4.8801]
[1742997061638,3.0,2049.6,2048.9,4.88059]
[1742997061833,0.92213695,2049.5,2048.9,9.7611]
[1742997062035,0.92213695,2049.5,2049.0,4.88037]
[1742997062233,0.09062654,2049.4,2048.7,0.8221]
[1742997062471,0.09062654,2049.4,2048.8,4.88069]
[1742997062682,0.09062654,2049.4,2049.0,4.88042]
[1742997062829,5.41062654,2049.4,2049.1,4.88017]
[1742997063261,0.09062654,2049.4,2049.0,0.488042]
[1742997063444,0.09062654,2049.4,2049.1,4.87997]
[1742997063668,3.0,2049.6,2049.1,4.88018]
[1742997063851,0.09491447,2049.3,2049.1,4.88018]
[1742997064053,3.0,2049.6,2049.1,4.87998]
[1742997064397,0.00549136,2049.2,2048.7,5.70312]
[1742997064570,0.00549136,2049.2,2048.7,0.8221]
[1742997064571,5.329,2049.2,2048.7,0.8221]
[1742997064739,0.5391792,2049.1,2048.7,0.8221]
[1742997064936,0.0062792,2049.1,2048.7,0.8221]
[1742997065142,0.0062792,2049.1,2048.9,4.88061]
[1742997065445,0.0062792,2049.1,2048.8,4.8809]
[1742997065446,0.00878583,2049.1,2048.8,4.8809]
[1742997065767,0.00878583,2049.1,2048.9,4.92937115]
[1742997065976,0.08572946,2049.0,2048.9,0.04880115]
[1742997066185,0.08572946,2049.0,2048.8,4.88085]
[1742997066348,0.08572946,2049.0,2048.9,4.88066]
[1742997066679,0.08572946,2049.0,2048.8,9.76161]
[1742997066867,5.34,2049.3,2048.9,4.88066]
[1742997067067,5.34,2049.3,2049.0,5.64271]
[1742997067270,5.34,2049.3,2049.0,0.7625]
[1742997067445,0.814,2049.7,2048.7,0.7625]
[1742997067647,3.0,2049.5,2048.7,0.7625]
[1742997067841,1.89794395,2049.4,2048.7,5.64363]
[1742997069081,0.7748,2049.3,2048.5,4.88162]
[1742997069287,0.7748,2049.3,2048.4,5.0020499]
[1742997069578,0.7748,2049.3,2048.5,4.88158]
[1742997069779,0.7748,2049.3,2048.8,4.88079]
[1742997069984,0.7748,2049.3,2049.0,4.8803]
[1742997069985,5.328,2049.3,2049.0,4.8803]
[1742997070278,5.329,2049.4,2049.2,4.87974]
[1742997070480,5.329,2049.4,2049.1,4.88008]
[1742997070681,5.329,2049.4,2049.2,4.87993]
[1742997070977,5.329,2049.4,2049.1,5.65173]
[1742997071152,5.329,2049.4,2049.2,4.87981]
[1742997071355,28.162,2049.8,2049.1,1.336773]
[1742997071555,5.342,2049.9,2049.4,4.87926]
[1742997071759,5.342,2049.9,2049.1,5.65174]
[1742997071760,5.342,2049.9,2049.3,4.87955]
[1742997071978,5.342,2049.9,2049.1,0.7716]
[1742997071979,5.95917,2049.9,2049.1,5.65166]
[1742997072275,3.0,2049.8,2048.8,1.30765995]
[1742997072475,0.7931,2049.7,2049.0,4.8803]
[1742997072682,0.7931,2049.7,2048.8,6.18843995]
[1742997072849,0.37931,2049.6,2048.9,4.88061]
[1742997073045,0.37931,2049.6,2048.8,6.18843995]
[1742997073484,0.37931,2049.6,2048.8,6.18835995]
[1742997073664,0.37931,2049.6,2048.9,4.88057]
[1742997073843,0.37931,2049.6,2049.0,4.88041]
[1742997074293,0.7931,2049.7,2049.2,4.8799]
[1742997074460,6.1671,2049.7,2049.3,4.87953]
[1742997074667,5.374,2049.7,2049.3,0.86429152]
[1742997074987,5.376,2050.2,2050.0,4.87789]
[1742997075150,5.54211379,2050.6,2049.9,4.87826]
[1742997075151,9.54145509,2050.5,2049.9,4.87826]
[1742997075345,9.54145509,2050.5,2050.0,4.87802]
[1742997075572,4.16145509,2050.5,2050.1,4.87772]
[1742997075782,9.53845509,2050.5,2050.0,4.87798]
[1742997075979,0.95384551,2050.4,2050.0,4.92675506]
[1742997076354,9.53345509,2050.5,2050.0,0.04877506]
[1742997076547,13.99745747,2050.5,2049.8,4.87844]
[1742997076746,3.0,2050.4,2049.8,9.75684]
[1742997076957,3.0,2050.4,2049.9,4.87818]
[1742997077146,3.0,2050.4,2050.1,4.87768]
[1742997077367,3.0,2050.4,2050.0,4.87803]
[1742997077555,6.1452,2050.5,2050.1,4.92643452]
[1742997077760,6.1452,2050.5,2050.1,9.75536]
[1742997077981,0.7732,2050.5,2050.1,9.75537]
[1742997078187,0.7732,2050.5,2049.6,0.7619]
[1742997078188,4.50292,2050.5,2049.9,4.87815]
[1742997078358,4.50292,2050.5,2050.0,4.87801]
[1742997078564,0.7732,2050.5,2050.0,0.04877481]
[1742997078761,28.9376,2050.7,2050.3,4.87729]
[1742997078960,34.2976,2050.7,2050.3,4.87729]
[1742997079285,3.0,2050.6,2049.8,4.87841]
[1742997079588,3.72976,2050.5,2049.9,4.87818]
[1742997080085,3.72976,2050.5,2050.1,4.87777]
[1742997080278,3.0,2050.6,2050.3,4.87732]
[1742997080476,3.0,2050.6,2050.1,4.92649101]
[1742997080679,3.0,2050.6,2050.1,4.87772]
[1742997080867,5.356,2050.5,2050.1,9.75544]
[1742997081062,5.356,2050.5,2050.2,4.87747]
[1742997081388,5.356,2050.5,2050.3,4.87733]
[1742997081786,3.0,2050.6,2050.3,4.87733]
[1742997082085,3.0,2050.6,2050.3,4.92597908]
[1742997082262,6.1246,2050.7,2050.4,4.87699]
[1742997082263,5.346,2050.7,2050.4,4.87699]
[1742997082464,5.346,2050.7,2050.3,10.72988]
[1742997082670,5.346,2050.7,2050.4,4.87693]
[1742997082988,0.8137,2051.0,2050.6,9.75304]
[1742997083157,0.8137,2051.0,2050.6,4.87647]
[1742997083486,5.347,2051.2,2050.6,4.87647]
[1742997083487,6.1744,2051.2,2050.6,4.87661]
[1742997083703,3.61744,2051.1,2050.5,4.87675]
[1742997083988,3.0,2051.1,2050.7,4.87637]
[1742997084186,0.8274,2051.2,2050.8,4.92478747]
[1742997084386,0.8274,2051.2,2050.4,5.67278]
[1742997084387,0.8274,2051.2,2050.5,4.87664]
[1742997084588,6.1724,2051.2,2050.5,4.87664]
[1742997084779,6.1724,2051.2,2050.4,5.67276]
[1742997084957,9.90504,2051.2,2050.5,1.15254]
[1742997085157,9.90504,2051.2,2050.5,4.87674]
[1742997085389,3.0,2051.1,2050.4,0.7957]
[1742997085589,3.0,2051.1,2050.4,5.67275]
[1742997085782,3.0,2051.1,2050.5,4.92549205]